fUSD/lending_fUSD_20260628
["ID","MTS","AMOUNT","RATE_DAILY","PERIOD"]
[426541165,1782571841000,-1000.0,0.00024658,2]
[426541167,1782571841000,-154.0,0.00024658,2]
[426541156,1782571841000,-1230.0,0.00024218,2]
[426541162,1782571841000,-152.26269015,0.00024452,2]
[426541179,1782571841000,-482.55,0.00024998,2]
[426541169,1782571841000,-152.26269024,0.00024726,2]
[426541170,1782571841000,-419.62,0.00024756,7]
[426541171,1782571841000,-334.73,0.00024961,7]
[426541172,1782571841000,-666.32,0.00024961,7]
[426541175,1782571841000,-482.58,0.00024998,2]
[426541176,1782571841000,-482.55,0.00024998,2]
[426541178,1782571841000,-573.78,0.00024998,2]
[426541174,1782571841000,-248.7,0.00024998,2]
[426541173,1782571841000,-5627.08,0.00024961,7]
[426541119,1782571841000,-165.00116769,0.00023858,2]
[426541146,1782571841000,-644.5,0.00024176,2]
[426541148,1782571841000,-248.72,0.00024176,2]
[426541168,1782571841000,-154.03,0.00024658,2]
[426541151,1782571841000,-482.55,0.00024176,2]
[426541143,1782571841000,-248.7,0.00024176,2]
[426541120,1782571841000,-219.01577641,0.00023879,2]
[426541124,1782571841000,-5238.47348371,0.000239,2]
[426541125,1782571841000,-152.26269015,0.00023904,2]
[426541121,1782571841000,-215.34301094,0.00023879,2]
[426541126,1782571841000,-500.0,0.00023973,2]
[426541123,1782571841000,-262.76,0.000239,7]
[426541128,1782571841000,-227.0,0.00024,2]
[426541135,1782571841000,-248.72,0.00024176,2]
[426541140,1782571841000,-347.82,0.00024176,2]
[426541132,1782571841000,-233.0,0.00024,2]
[426541133,1782571841000,-343.0,0.00024,2]
[426541129,1782571841000,-315.0,0.00024,2]
[426541134,1782571841000,-175.0,0.00024,2]
[426541122,1782571841000,-151.52685457,0.00023879,2]
[426541131,1782571841000,-352.0,0.00024,2]
[426541144,1782571841000,-248.72,0.00024176,2]
[426541139,1782571841000,-573.78,0.00024176,2]
[426541150,1782571841000,-482.55,0.00024176,2]
[426541145,1782571841000,-644.51,0.00024176,2]
[426541142,1782571841000,-248.7,0.00024176,2]
[426541152,1782571841000,-248.7,0.00024176,2]
[426541153,1782571841000,-152.26269015,0.00024178,2]
[426541141,1782571841000,-248.7,0.00024176,2]
[426541138,1782571841000,-482.55,0.00024176,2]
[426541136,1782571841000,-482.55,0.00024176,2]
[426541130,1782571841000,-500.0,0.00024,2]
[426541137,1782571841000,-481.48,0.00024176,2]
[426541154,1782571841000,-1361.0,0.00024218,2]
[426541211,1782571842000,-316.41533467,0.00025072,2]
[426541208,1782571842000,-304.03574522,0.00025072,2]
[426541203,1782571842000,-12220.67,0.00025,2]
[426541212,1782571842000,-644.5,0.00025082,2]
[426541202,1782571842000,-22206.67,0.00025,2]
[426541213,1782571842000,-287.26,0.00025082,2]
[426541206,1782571842000,-351.74623189,0.00025,2]
[426541207,1782571842000,-187.45489804,0.00025,2]
[426541209,1782571842000,-189.53429303,0.00025072,2]
[426541218,1782571842000,-248.7,0.00025082,2]
[426541210,1782571842000,-330.25156639,0.00025072,2]
[426541205,1782571842000,-1222.06,0.00025,2]
[426541214,1782571842000,-185.25,0.00025082,2]
[426541219,1782571842000,-185.17,0.00025082,2]
[426541216,1782571842000,-644.5,0.00025082,2]
[426541217,1782571842000,-248.72,0.00025082,2]
[426541201,1782571842000,-50000.0,0.00025,2]
[426541223,1782571842000,-573.56,0.00025082,2]
[426541204,1782571842000,-235.83118614,0.00025,2]
[426541197,1782571842000,-228.7724219,0.00025,2]
[426541183,1782571842000,-250.23,0.00024998,2]
[426541192,1782571842000,-248.7,0.00024998,2]
[426541225,1782571842000,-573.78,0.00025082,2]
[426541180,1782571842000,-573.78,0.00024998,2]
[426541182,1782571842000,-185.18,0.00024998,2]
[426541181,1782571842000,-482.56,0.00024998,2]
[426541185,1782571842000,-482.55,0.00024998,2]
[426541189,1782571842000,-644.5,0.00024998,2]
[426541184,1782571842000,-248.7,0.00024998,2]
[426541187,1782571842000,-248.7,0.00024998,2]
[426541194,1782571842000,-482.55,0.00024998,2]
[426541188,1782571842000,-482.55,0.00024998,2]
[426541191,1782571842000,-248.7,0.00024998,2]
[426541190,1782571842000,-482.55,0.00024998,2]
[426541198,1782571842000,-327.88279101,0.00025,2]
[426541195,1782571842000,-1000.0,0.00025,2]
[426541199,1782571842000,-356.40283707,0.00025,2]
[426541193,1782571842000,-573.78,0.00024998,2]
[426541200,1782571842000,-50000.0,0.00025,2]
[426541196,1782571842000,-487801.98847375,0.00025,2]
[426541186,1782571842000,-248.7,0.00024998,2]
[426541226,1782571842000,-644.5,0.00025096,2]
[426541224,1782571842000,-482.25,0.00025082,2]
[426541222,1782571842000,-482.55,0.00025082,2]
[426541252,1782571842000,-151.0,0.00025797,7]
[426541249,1782571842000,-150.0,0.00025675,7]
[426541248,1782571842000,-259.34939079,0.00025458,2]
[426541250,1782571842000,-150.0,0.00025675,7]
[426541254,1782571842000,-226242.02088205,0.000258,2]
[426541260,1782571842000,-1800.79268935,0.000258,2]
[426541263,1782571842000,-753.44956564,0.00025188,2]
[426541275,1782571842000,-312.48384923,0.00025188,2]
[426541247,1782571842000,-329.64662584,0.00025458,2]
[426541276,1782571842000,-7739.22509392,0.000258,2]
[426541278,1782571842000,-30786.38209292,0.000258,2]
[426541280,1782571842000,-200.61385533,0.00025914,2]
[426541281,1782571842000,-456.05361783,0.00025914,2]
[426541282,1782571842000,-379.06858606,0.00025914,2]
[426541284,1782571842000,-495.37734958,0.00025914,2]
[426541286,1782571842000,-204.21070858,0.00025914,2]
[426541285,1782571842000,-561.97531116,0.00025914,2]
[426541215,1782571842000,-248.7,0.00025082,2]
[426541279,1782571842000,-201.37614002,0.00025914,2]
[426541243,1782571842000,-200.0,0.00025165,2]
[426541277,1782571842000,-599.78908932,0.000258,2]
[426541245,1782571842000,-154.0,0.00025409,7]
[426541246,1782571842000,-154.03,0.00025409,7]
[426541220,1782571842000,-644.5,0.00025082,2]
[426541227,1782571842000,-248.7,0.00025096,2]
[426541240,1782571842000,-153.94404055,0.00025145,2]
[426541229,1782571842000,-344.77013336,0.00025123,2]
[426541241,1782571842000,-165.20046159,0.00025145,2]
[426541228,1782571842000,-185.25,0.00025096,2]
[426541230,1782571842000,-380.83085337,0.00025123,2]
[426541231,1782571842000,-365.72711714,0.00025123,2]
[426541221,1782571842000,-248.7,0.00025082,2]
[426541234,1782571842000,-330.00233538,0.00025123,2]
[426541235,1782571842000,-152.80855906,0.00025145,2]
[426541236,1782571842000,-438.03155281,0.00025145,2]
[426541238,1782571842000,-160.64664018,0.00025145,2]
[426541239,1782571842000,-430.68602187,0.00025145,2]
[426541233,1782571842000,-238.66497899,0.00025123,2]
[426541242,1782571842000,-168.84503051,0.00025146,2]
[426541232,1782571842000,-355.78054026,0.00025123,2]
[426541244,1782571842000,-2000.0,0.000254,2]
[426541321,1782571843000,-550.0,0.00026,2]
[426541326,1782571843000,-154.03,0.00026161,30]
[426541324,1782571843000,-2000.0,0.000261,2]
[426541314,1782571843000,-247.89586383,0.00025989,2]
[426541320,1782571843000,-11150.32988837,0.00026,2]
[426541322,1782571843000,-289.05898315,0.00026048,2]
[426541317,1782571843000,-337.69006102,0.0002599,2]
[426541327,1782571843000,-11150.32988837,0.00026222,2]
[426541316,1782571843000,-226.75274633,0.0002599,2]
[426541315,1782571843000,-242.58665546,0.0002599,2]
[426541319,1782571843000,-248.7,0.00025995,2]
[426541325,1782571843000,-154.0,0.00026161,30]
[426541333,1782571843000,-152.81969986,0.00026476,2]
[426541329,1782571843000,-507.77,0.00026326,2]
[426541335,1782571843000,-230.48536537,0.00026476,2]
[426541332,1782571843000,-183.52195464,0.00026476,2]
[426541330,1782571843000,-419.62,0.00026341,7]
[426541345,1782571843000,-302.22197674,0.00026476,2]
[426541334,1782571843000,-221.79340811,0.00026476,2]
[426541331,1782571843000,-11150.32988837,0.00026444,2]
[426541337,1782571843000,-270.12043013,0.00026476,2]
[426541336,1782571843000,-259.54035869,0.00026476,2]
[426541338,1782571843000,-402.75228003,0.00026476,2]
[426541340,1782571843000,-364.10073396,0.00026476,2]
[426541328,1782571843000,-156.84109195,0.00026276,2]
[426541313,1782571843000,-330.40092318,0.00025989,2]
[426541293,1782571843000,-571.24628006,0.00025966,2]
[426541323,1782571843000,-262.76,0.000261,7]
[426541341,1782571843000,-344.53596586,0.00026476,2]
[426541288,1782571843000,-217.64098625,0.00025914,2]
[426541287,1782571843000,-474.62300201,0.00025914,2]
[426541291,1782571843000,-642.44,0.00025918,2]
[426541299,1782571843000,-215.25885273,0.00025966,2]
[426541298,1782571843000,-244.782229,0.00025966,2]
[426541290,1782571843000,-482.46,0.00025918,2]
[426541289,1782571843000,-242.25147026,0.00025914,2]
[426541297,1782571843000,-477.32995798,0.00025966,2]
[426541296,1782571843000,-319.68848646,0.00025966,2]
[426541292,1782571843000,-517.15520004,0.00025966,2]
[426541294,1782571843000,-548.59067571,0.00025966,2]
[426541312,1782571843000,-244.0511536,0.00025989,2]
[426541295,1782571843000,-533.67081039,0.00025966,2]
[426541301,1782571843000,-237.09212075,0.00025989,2]
[426541302,1782571843000,-305.61711812,0.00025989,2]
[426541303,1782571843000,-657.04732922,0.00025989,2]
[426541311,1782571843000,-222.12015453,0.00025989,2]
[426541304,1782571843000,-229.64560091,0.00025989,2]
[426541305,1782571843000,-321.29328036,0.00025989,2]
[426541310,1782571843000,-225.99646095,0.00025989,2]
[426541308,1782571843000,-307.88808111,0.00025989,2]
[426541307,1782571843000,-234.00379822,0.00025989,2]
[426541309,1782571843000,-248.26820462,0.00025989,2]
[426541306,1782571843000,-646.02903281,0.00025989,2]
[426541318,1782571843000,-275.30048054,0.0002599,2]
[426541300,1782571843000,-495.00350307,0.00025966,2]
[426541342,1782571843000,-608.07149044,0.00026476,2]
[426541347,1782571843000,-660.50313277,0.00026476,2]
[426541344,1782571843000,-209.10651727,0.00026476,2]
[426541382,1782571843000,-227.97596607,0.00026552,2]
[426541381,1782571843000,-281.52982405,0.00026552,2]
[426541380,1782571843000,-198.16311345,0.00026552,2]
[426541376,1782571843000,-164.06941395,0.00026552,2]
[426541384,1782571843000,-393.33498787,0.00026552,2]
[426541383,1782571843000,-353.31327918,0.00026552,2]
[426541392,1782571843000,-451.99292191,0.00026552,2]
[426541389,1782571843000,-461.83212166,0.00026552,2]
[426541385,1782571843000,-481.93992054,0.00026552,2]
[426541388,1782571843000,-326.27806202,0.00026552,2]
[426541391,1782571843000,-444.24030905,0.00026552,2]
[426541390,1782571843000,-496.53640925,0.00026552,2]
[426541387,1782571843000,-270.78953006,0.00026552,2]
[426541386,1782571843000,-861.37204374,0.00026552,2]
[426541393,1782571843000,-488.10230719,0.00026552,2]
[426541395,1782571843000,-495.79172767,0.00026552,2]
[426541397,1782571843000,-394.91110947,0.00026552,2]
[426541396,1782571843000,-606.10741828,0.00026552,2]
[426541398,1782571843000,-225.09741246,0.00026552,2]
[426541394,1782571843000,-495.60138477,0.00026552,2]
[426541399,1782571843000,-265.74781951,0.00026552,2]
[426541403,1782571843000,-311.36520121,0.00026553,2]
[426541402,1782571843000,-485.17331091,0.00026552,2]
[426541404,1782571843000,-453.50549266,0.00026553,2]
[426541400,1782571843000,-484.50294052,0.00026552,2]
[426541378,1782571843000,-458.42567718,0.00026552,2]
[426541375,1782571843000,-293.94553126,0.00026529,2]
[426541401,1782571843000,-260.5603538,0.00026552,2]
[426541377,1782571843000,-474.1842415,0.00026552,2]
[426541379,1782571843000,-876.06310562,0.00026552,2]
[426541346,1782571843000,-225.42285771,0.00026476,2]
[426541343,1782571843000,-568.60287908,0.00026476,2]
[426541348,1782571843000,-408.42141716,0.00026476,2]
[426541350,1782571843000,-632.83066935,0.00026476,2]
[426541351,1782571843000,-435.2819725,0.00026476,2]
[426541354,1782571843000,-689.54026672,0.00026529,2]
[426541349,1782571843000,-232.06531473,0.00026476,2]
[426541355,1782571843000,-761.66170674,0.00026529,2]
[426541361,1782571843000,-185.26790303,0.00026529,2]
[426541353,1782571843000,-468.00759645,0.0002649,2]
[426541357,1782571843000,-731.45423428,0.00026529,2]
[426541359,1782571843000,-711.56108052,0.00026529,2]
[426541339,1782571843000,-401.22771065,0.00026476,2]
[426541363,1782571843000,-225.69765733,0.00026529,2]
[426541360,1782571843000,-479.53272969,0.00026529,2]
[426541372,1782571843000,-430.51770547,0.00026529,2]
[426541366,1782571843000,-229.51065306,0.00026529,2]
[426541368,1782571843000,-348.50189984,0.00026529,2]
[426541370,1782571843000,-206.02557026,0.00026529,2]
[426541367,1782571843000,-715.99493697,0.00026529,2]
[426541369,1782571843000,-353.13671771,0.00026529,2]
[426541365,1782571843000,-297.62214938,0.00026529,2]
[426541364,1782571843000,-286.38226236,0.00026529,2]
[426541362,1782571843000,-207.68759481,0.00026529,2]
[426541374,1782571843000,-660.00467076,0.00026529,2]
[426541373,1782571843000,-201.86507652,0.00026529,2]
[426541371,1782571843000,-348.83456117,0.00026529,2]
[426541410,1782571844000,-459.29120183,0.00026553,2]
[426541415,1782571844000,-644.5,0.00026721,2]
[426541408,1782571844000,-371.68770501,0.00026553,2]
[426541412,1782571844000,-410.48444219,0.00026688,2]
[426541418,1782571844000,-482.55,0.00026721,2]
[426541417,1782571844000,-482.42,0.00026721,2]
[426541416,1782571844000,-295.25,0.00026721,2]
[426541407,1782571844000,-550.60096108,0.00026553,2]
[426541405,1782571844000,-506.53509153,0.00026553,2]
[426541406,1782571844000,-211.95657134,0.00026553,2]
[426541409,1782571844000,-334.24278409,0.00026553,2]
[426541413,1782571844000,-248.7,0.00026721,2]
[426541411,1782571844000,-11150.32988837,0.00026667,2]
[426541419,1782571844000,-482.55,0.00026721,2]
[426541414,1782571844000,-248.7,0.00026721,2]
[426541430,1782571844000,-322.79,0.000268,2]
[426541431,1782571844000,-311.0,0.000268,2]
[426541429,1782571844000,-1234294.37367264,0.000268,2]
[426541428,1782571844000,-259723.19163936,0.000268,2]
[426541425,1782571844000,-151.0,0.00026797,7]
[426541420,1782571844000,-248.7,0.00026721,2]
[426541427,1782571844000,-19661.54449444,0.000268,2]
[426541424,1782571844000,-677.357619,0.00026788,2]
[426541423,1782571844000,-644.53,0.00026721,2]
[426541422,1782571844000,-644.5,0.00026721,2]
[426541426,1782571844000,-151.0,0.00026797,7]
[426541421,1782571844000,-644.5,0.00026721,2]
[426541433,1782571846000,-1427.48316189,0.000268,2]
[426541434,1782571846000,-1897.41908778,0.000268,2]
[426541432,1782571846000,-1065.93341487,0.000267,2]
[426541437,1782571846000,-2493.53985232,0.000268,2]
[426541436,1782571846000,-7712.03887918,0.000268,2]
[426541435,1782571846000,-151.0,0.00016205,2]
[426541441,1782572063000,107524.77099476,0.00037438,120]
[426541442,1782572146000,407457.6635605,0.00037438,120]
[426541444,1782572248000,143358.70868782,0.00037438,120]
[426541448,1782572342000,274.43746891,0.00037438,120]
[426541449,1782572345000,1962.89245692,0.00037438,120]
[426541450,1782572348000,293.0,0.00037433,120]
[426541451,1782572349000,222.0,0.00037433,120]
[426541452,1782572350000,209.0,0.00037433,120]
[426541453,1782572351000,220.0,0.00037433,120]
[426541455,1782572352000,167.0,0.00037433,120]
[426541454,1782572352000,293.0,0.00037433,120]
[426541456,1782572353000,189.0,0.00037433,120]
[426541457,1782572402000,190.0,0.00037433,120]
[426541458,1782572403000,265.10398111,0.00037433,120]
[426541459,1782572427000,500.0,0.00037433,120]
[426541467,1782572563000,-172.68,0.0001237,2]
[426541468,1782572704000,150.0,0.00011762,2]
[426541469,1782572711000,150.0,0.00011762,2]
[426541470,1782572797000,385.45,0.00012282,2]
[426541480,1782572974000,-151.97906923,0.00012892,2]
[426541479,1782572974000,-959.54771781,0.00012892,2]
[426541478,1782572974000,-959.54771781,0.00012892,2]
[426541476,1782572974000,-236.04928457,0.00012892,2]
[426541477,1782572974000,-959.54771781,0.00012892,2]
[426541475,1782572974000,-150.0,0.00012891,2]
[426541473,1782572974000,-401.10712077,0.00012794,2]
[426541474,1782572974000,-490.53,0.00012808,2]
[426541471,1782572974000,-950.31,0.00012611,2]
[426541472,1782572974000,-150.0,0.00012745,2]
[426541481,1782572994000,-574.20583563,0.00012892,2]
[426541482,1782572994000,-807.56864858,0.00012892,2]
[426541486,1782572994000,-739.58236236,0.00012892,2]
[426541483,1782572994000,-959.54771781,0.00012892,2]
[426541485,1782572994000,-959.54771781,0.00012892,2]
[426541484,1782572994000,-959.54771781,0.00012892,2]
[426541489,1782572995000,-959.54771781,0.00012892,2]
[426541487,1782572995000,-219.96535545,0.00012892,2]
[426541488,1782572995000,-959.54771781,0.00012892,2]
[426541491,1782572995000,-959.54771781,0.00012892,2]
[426541490,1782572995000,-959.54771781,0.00012892,2]
[426541495,1782572995000,-959.54771781,0.00012892,2]
[426541493,1782572995000,-17.7039445,0.00012892,2]
[426541494,1782572995000,-959.54771781,0.00012892,2]
[426541497,1782572995000,-959.54771781,0.00012892,2]
[426541496,1782572995000,-959.54771781,0.00012892,2]
[426541492,1782572995000,-941.84377331,0.00012892,2]
[426541504,1782572996000,-959.54771781,0.00012892,2]
[426541498,1782572996000,-959.54771781,0.00012892,2]
[426541499,1782572996000,-184.55746645,0.00012892,2]
[426541501,1782572996000,-959.54771781,0.00012892,2]
[426541500,1782572996000,-774.99025136,0.00012892,2]
[426541503,1782572996000,-959.54771781,0.00012892,2]
[426541502,1782572996000,-959.54771781,0.00012892,2]
[426541505,1782572996000,-386.8188774,0.00012892,2]
[426541506,1782572996000,-572.72884041,0.00012892,2]
[426541515,1782572996000,-959.54771781,0.00012892,2]
[426541507,1782572996000,-959.54771781,0.00012892,2]
[426541510,1782572996000,-959.54771781,0.00012892,2]
[426541508,1782572996000,-959.54771781,0.00012892,2]
[426541511,1782572996000,-589.08028835,0.00012892,2]
[426541512,1782572996000,-370.46742946,0.00012892,2]
[426541513,1782572996000,-959.54771781,0.00012892,2]
[426541514,1782572996000,-959.54771781,0.00012892,2]
[426541516,1782572996000,-959.54771781,0.00012892,2]
[426541509,1782572996000,-959.54771781,0.00012892,2]
[426541524,1782572997000,-34.05539244,0.00012892,2]
[426541522,1782572997000,-959.54771781,0.00012892,2]
[426541521,1782572997000,-959.54771781,0.00012892,2]
[426541517,1782572997000,-791.3416993,0.00012892,2]
[426541523,1782572997000,-959.54771781,0.00012892,2]
[426541519,1782572997000,-959.54771781,0.00012892,2]
[426541518,1782572997000,-168.20601851,0.00012892,2]
[426541520,1782572997000,-959.54771781,0.00012892,2]
[426541525,1782572997000,-925.49232537,0.00012892,2]
[426541528,1782572997000,-959.54771781,0.00012892,2]
[426541529,1782572997000,-959.54771781,0.00012892,2]
[426541527,1782572997000,-959.54771781,0.00012892,2]
[426541530,1782572997000,-236.31680339,0.00012892,2]
[426541531,1782572997000,-723.23091442,0.00012892,2]
[426541533,1782572997000,-942.10139568,0.00012892,2]
[426541532,1782572997000,-942.10139568,0.00012892,2]
[426541534,1782572997000,-942.10139568,0.00012892,2]
[426541535,1782572997000,-942.10139568,0.00012892,2]
[426541526,1782572997000,-959.54771781,0.00012892,2]
[426541542,1782572998000,-797.85652446,0.00012892,2]
[426541539,1782572998000,-942.10139568,0.00012892,2]
[426541540,1782572998000,-942.10139568,0.00012892,2]
[426541536,1782572998000,-508.36350286,0.00012892,2]
[426541537,1782572998000,-433.73789282,0.00012892,2]
[426541543,1782572998000,-144.24487122,0.00012892,2]
[426541541,1782572998000,-942.10139568,0.00012892,2]
[426541545,1782572998000,-942.10139568,0.00012892,2]
[426541538,1782572998000,-942.10139568,0.00012892,2]
[426541547,1782572998000,-942.10139568,0.00012892,2]
[426541546,1782572998000,-942.10139568,0.00012892,2]
[426541549,1782572998000,-145.24815038,0.00012892,2]
[426541548,1782572998000,-942.10139568,0.00012892,2]
[426541551,1782572998000,-942.10139568,0.00012892,2]
[426541550,1782572998000,-796.8532453,0.00012892,2]
[426541552,1782572998000,-942.10139568,0.00012892,2]
[426541553,1782572998000,-942.10139568,0.00012892,2]
[426541544,1782572998000,-942.10139568,0.00012892,2]
[426541555,1782572999000,-434.74117198,0.00012892,2]
[426541554,1782572999000,-942.10139568,0.00012892,2]
[426541556,1782572999000,-507.3602237,0.00012892,2]
[426541558,1782572999000,-942.10139568,0.00012892,2]
[426541557,1782572999000,-942.10139568,0.00012892,2]
[426541559,1782572999000,-942.10139568,0.00012892,2]
[426541560,1782572999000,-942.10139568,0.00012892,2]
[426541561,1782572999000,-724.23419358,0.00012892,2]
[426541562,1782572999000,-217.8672021,0.00012892,2]
[426541565,1782572999000,-942.10139568,0.00012892,2]
[426541564,1782572999000,-942.10139568,0.00012892,2]
[426541566,1782572999000,-942.10139568,0.00012892,2]
[426541567,1782572999000,-942.10139568,0.00012892,2]
[426541568,1782572999000,-71.6258195,0.00012892,2]
[426541563,1782572999000,-942.10139568,0.00012892,2]
[426541570,1782573000000,-942.10139568,0.00012892,2]
[426541569,1782573000000,-870.47557618,0.00012892,2]
[426541572,1782573000000,-959.23051195,0.00012892,2]
[426541573,1782573000000,-959.23051195,0.00012892,2]
[426541571,1782573000000,-942.10139568,0.00012892,2]
[426541575,1782573000000,-632.36990339,0.00012892,2]
[426541574,1782573000000,-326.86060856,0.00012892,2]
[426541576,1782573000000,-959.23051195,0.00012892,2]
[426541580,1782573000000,-530.70804881,0.00012892,2]
[426541577,1782573000000,-959.23051195,0.00012892,2]
[426541584,1782573000000,-959.23051195,0.00012892,2]
[426541585,1782573000000,-1693.78600101,0.00012893,2]
[426541582,1782573000000,-959.23051195,0.00012892,2]
[426541578,1782573000000,-959.23051195,0.00012892,2]
[426541583,1782573000000,-959.23051195,0.00012892,2]
[426541579,1782573000000,-959.23051195,0.00012892,2]
[426541581,1782573000000,-428.52246314,0.00012892,2]
[426541588,1782573001000,-5000.0,0.00012893,2]
[426541586,1782573001000,-5000.0,0.00012893,2]
[426541587,1782573001000,-5000.0,0.00012893,2]
[426541591,1782573002000,-5000.0,0.00012893,2]
[426541590,1782573002000,-5000.0,0.00012893,2]
[426541589,1782573002000,-5000.0,0.00012893,2]
[426541592,1782573003000,-5000.0,0.00012893,2]
[426541594,1782573003000,-5000.0,0.00012893,2]
[426541593,1782573003000,-5000.0,0.00012893,2]
[426541596,1782573004000,-5000.0,0.00012893,2]
[426541595,1782573004000,-5000.0,0.00012893,2]
[426541599,1782573005000,-5000.0,0.00012893,2]
[426541598,1782573005000,-5000.0,0.00012893,2]
[426541597,1782573005000,-5000.0,0.00012893,2]
[426541602,1782573006000,-5000.0,0.00012893,2]
[426541601,1782573006000,-5000.0,0.00012893,2]
[426541600,1782573006000,-5000.0,0.00012893,2]
[426541605,1782573007000,-5000.0,0.00012893,2]
[426541604,1782573007000,-5000.0,0.00012893,2]
[426541603,1782573007000,-5000.0,0.00012893,2]
[426541607,1782573008000,-5000.0,0.00012893,2]
[426541606,1782573008000,-5000.0,0.00012893,2]
[426541610,1782573009000,-5000.0,0.00012893,2]
[426541609,1782573009000,-5000.0,0.00012893,2]
[426541608,1782573009000,-5000.0,0.00012893,2]
[426541611,1782573010000,-5000.0,0.00012893,2]
[426541613,1782573010000,-5000.0,0.00012893,2]
[426541612,1782573010000,-5000.0,0.00012893,2]
[426541616,1782573011000,-5000.0,0.00012893,2]
[426541615,1782573011000,-5000.0,0.00012893,2]
[426541614,1782573011000,-5000.0,0.00012893,2]
[426541618,1782573012000,-5000.0,0.00012893,2]
[426541617,1782573012000,-5000.0,0.00012893,2]
[426541621,1782573013000,-5000.0,0.00012893,2]
[426541620,1782573013000,-5000.0,0.00012893,2]
[426541619,1782573013000,-5000.0,0.00012893,2]
[426541623,1782573014000,-5000.0,0.00012893,2]
[426541622,1782573014000,-5000.0,0.00012893,2]
[426541626,1782573015000,-5000.0,0.00012893,2]
[426541625,1782573015000,-5000.0,0.00012893,2]
[426541624,1782573015000,-5000.0,0.00012893,2]
[426541627,1782573016000,-5000.0,0.00012893,2]
[426541628,1782573016000,-5000.0,0.00012893,2]
[426541629,1782573016000,-5000.0,0.00012893,2]
[426541630,1782573017000,-5000.0,0.00012893,2]
[426541635,1782573018000,-1776.1766508,0.00012894,2]
[426541634,1782573018000,-723.8233492,0.00012894,2]
[426541633,1782573018000,-200.0,0.00012893,2]
[426541632,1782573018000,-618.30755181,0.00012893,2]
[426541631,1782573018000,-3457.86909899,0.00012893,2]
[426541646,1782573031000,-755.89100453,0.00012993,3]
[426541639,1782573031000,-416.8645313,0.00012984,2]
[426541641,1782573031000,-500.0,0.00012993,2]
[426541643,1782573031000,-500.0,0.00012993,2]
[426541637,1782573031000,-1745.9459,0.00012894,2]
[426541640,1782573031000,-1000.0,0.00012992,2]
[426541645,1782573031000,-315.18246443,0.00012993,2]
[426541638,1782573031000,-950.31,0.00012926,2]
[426541644,1782573031000,-361.07075386,0.00012993,2]
[426541648,1782573031000,-1954.25481839,0.00012993,2]
[426541647,1782573031000,-316.67938161,0.00012993,3]
[426541649,1782573031000,-9622.15518161,0.00012993,2]
[426541651,1782573031000,-9999.99,0.00012993,2]
[426541652,1782573031000,-999.99,0.00012993,2]
[426541642,1782573031000,-618.47659627,0.00012993,2]
[426541650,1782573031000,-2139.55,0.00012993,2]
[426541653,1782573032000,-150.99,0.00012993,2]
[426541655,1782573032000,-137354.45738434,0.00012994,2]
[426541654,1782573032000,-250.3392,0.00012994,2]
[426541658,1782573032000,-129832.1952636,0.00012994,2]
[426541657,1782573032000,-19146.74269032,0.00012994,2]
[426541659,1782573032000,-1254.41808677,0.00012994,2]
[426541662,1782573032000,-318.65999999,0.00012994,2]
[426541660,1782573032000,-537.35661732,0.00012994,2]
[426541661,1782573032000,-10005.59215753,0.00012994,2]
[426541656,1782573032000,-117484.27140735,0.00012994,2]
[426541665,1782573033000,-5000.0,0.00012994,2]
[426541666,1782573034000,-5000.0,0.00012994,2]
[426541669,1782573035000,-5000.0,0.00012994,2]
[426541668,1782573035000,-5000.0,0.00012994,2]
[426541667,1782573035000,-5000.0,0.00012994,2]
[426541672,1782573036000,-5000.0,0.00012994,2]
[426541671,1782573036000,-5000.0,0.00012994,2]
[426541670,1782573036000,-5000.0,0.00012994,2]
[426541673,1782573037000,-5000.0,0.00012994,2]